[Event "26th Abu Dhabi Master 2019"]
[Site "Abu Dhabi"]
[Date "2019.08.04"]
[Round "4.57"]
[White "Mrudul Dehankar"]
[Black "Samant Aditya S"]
[Result "0-1"]
[ECO "A05"]
[WhiteElo "2074"]
[BlackElo "2296"]
[Annotator "NA"]
[PlyCount "102"]
[EventDate "2019.08.02"]
[EventType "swiss"]
[EventCountry "UAE"]
[SourceTitle "playchess.com"]
[Source "ChessBase"]
[SourceQuality "1"]
[TimeControl "5400+30"]

1. Nf3 {[%emt 0:00:00]} Nf6 {[%emt 0:00:00]} 2. b3 {[%emt 0:00:00]} d5 {[%emt 0:01:12]} 3. e3 {[%emt 0:00:25]} Bf5 {[%emt 0:00:20]} 4. Bb2 {[%emt 0:00:22]} e6 {[%emt 0:00:05]} 5. d3 {[%emt 0:00:44]} Be7 {[%emt 0:00:26]} 6. Nbd2 {[%emt 0:00:17]} O-O {[%emt 0:00:08]} 7. Be2 {[%emt 0:03:03]} h6 {[%emt 0:00:41]} 8. O-O {[%emt 0:00:35]} c5 {[%emt 0:01:43]} 9. Ne5 {[%emt 0:05:22]} Bh7 {[%emt 0:01:14]} 10. f4 {[%emt 0:01:45]} Nfd7 {[%emt 0:03:16]} 11. Ndf3 {[%emt 0:05:23]} Nxe5 {[%emt 0:01:30]} 12. Nxe5 {[%emt 0:01:21]} Nd7 {[%emt 0:00:43]} 13. Qe1 {[%emt 0:02:04]} Nxe5 {[%emt 0:01:29]} 14. fxe5 {[%emt 0:06:22]} Bh4 {[%emt 0:04:23]} 15. g3 {[%emt 0:02:31]} Be7 {[%emt 0:06:51]} 16. Qf2 {[%emt 0:11:11]} Rc8 {[%emt 0:01:19]} 17. Qg2 {[%emt 0:02:06]} Bg5 {[%emt 0:04:11]} 18. Qf3 {[%emt 0:11:21]} d4 {[%emt 0:21:46]} 19. Bc1 {[%emt 0:11:10]} Qc7 {[%emt 0:22:19]} 20. h4 {[%emt 0:00:30]} Be7 21. e4 {[%emt 0:22:34]} g5 22. hxg5 hxg5 {[%emt 0:01:30]} 23. Qh5 {[%emt 0:02:06]} Qxe5 {[%emt 0:01:04]} 24. Kg2 {[%emt 0:00:07]} Bg6 {[%emt 0:01:20]} 25. Qh6 {[%emt 0:00:35]} Qg7 {[%emt 0:00:34]} 26. Qxg7+ {[%emt 0:05:01]} Kxg7 {[%emt 0:00:14]} 27. a4 {[%emt 0:01:11]} f5 {[%emt 0:07:17]} 28. exf5 {[%emt 0:03:16]} exf5 {[%emt 0:00:06]} 29. Bf3 {[%emt 0:01:10]} b6 {[%emt 0:00:17]} 30. Re1 {[%emt 0:00:58]} Bf6 {[%emt 0:00:20]} 31. Bd2 {[%emt 0:00:44]} Bf7 {[%emt 0:02:21]} 32. Kf2 {[%emt 0:00:40]} Rc7 {[%emt 0:02:31]} 33. Bg2 {[%emt 0:00:56]} a6 {[%emt 0:00:36]} 34. Bh3 {[%emt 0:00:30]} Kg6 {[%emt 0:00:34]} 35. Bg2 {[%emt 0:00:18]} Rh8 {[%emt 0:00:57]} 36. Rh1 {[%emt 0:00:42]} Rxh1 {[%emt 0:01:48]} 37. Rxh1 {[%emt 0:00:02]} b5 {[%emt 0:05:33]} 38. axb5 {[%emt 0:00:06]} axb5 {[%emt 0:00:06]} 39. Bf3 {[%emt 0:01:23]} g4 {[%emt 0:03:32]} 40. Bg2 {[%emt 0:00:32]} Ra7 {[%emt 0:00:22]} 41. Rc1 {[%emt 0:00:29]} Ra2 {[%emt 0:00:34]} 42. Ke2 {[%emt 0:00:30]} Be5 {[%emt 0:00:13]} 43. Bc6 {[%emt 0:00:30]} Bxg3 {[%emt 0:01:39]} 44. Bxb5 {[%emt 0:00:15]} Bd5 {[%emt 0:00:59]} 45. Ba4 {[%emt 0:00:45]} f4 {[%emt 0:00:40]} 46. Be1 {[%emt 0:00:32]} f3+ {[%emt 0:00:41]} 47. Kf1 {[%emt 0:00:07]} Bf4 {[%emt 0:00:08]} 48. Rb1 {[%emt 0:00:42]} g3 {[%emt 0:00:07]} 49. Bd7 {[%emt 0:00:28]} g2+ {[%emt 0:00:18]} 50. Kg1 {[%emt 0:00:05]} Be3+ {[%emt 0:00:07]} 51. Bf2 {[%emt 0:00:03]} Rxc2 {[%emt 0:00:14]} 0-1

[Event "26th Abu Dhabi Master 2019"]
[Site "Abu Dhabi"]
[Date "2019.08.04"]
[Round "4.58"]
[White "Eynullayev, Atilla"]
[Black "Sharma Isha"]
[Result "1-0"]
[ECO "C41"]
[WhiteElo "2228"]
[BlackElo "2188"]
[Annotator "NA"]
[PlyCount "141"]
[EventDate "2019.08.02"]
[EventType "swiss"]
[EventCountry "UAE"]
[SourceTitle "playchess.com"]
[Source "ChessBase"]
[SourceQuality "1"]
[TimeControl "5400+30"]

1. d4 d6 2. e4 Nf6 3. Nc3 e5 4. Nf3 Nbd7 {[%emt 0:00:00]} 5. Bc4 {[%emt 0:00:09]} Be7 {[%emt 0:00:00]} 6. O-O {[%emt 0:00:07]} O-O {[%emt 0:00:00]} 7. Re1 {[%emt 0:00:10]} c6 {[%emt 0:00:02]} 8. a4 {[%emt 0:00:06]} a5 {[%emt 0:00:03]} 9. h3 {[%emt 0:00:04]} Nb6 {[%emt 0:00:06]} 10. Bb3 {[%emt 0:00:06]} Nfd7 {[%emt 0:01:54]} 11. Be3 {[%emt 0:02:25]} exd4 {[%emt 0:01:43]} 12. Nxd4 {[%emt 0:00:05]} Nc5 {[%emt 0:00:05]} 13. Qf3 {[%emt 0:00:06]} Nxb3 {[%emt 0:03:42]} 14. cxb3 {[%emt 0:00:06]} Nd7 {[%emt 0:08:46]} 15. Rad1 {[%emt 0:07:32]} Nc5 {[%emt 0:05:15]} 16. Nxc6 {[%emt 0:08:35]} bxc6 {[%emt 0:00:30]} 17. Bxc5 {[%emt 0:00:20]} Qc7 {[%emt 0:03:40]} 18. Qg3 {[%emt 0:01:54]} Rd8 {[%emt 0:00:24]} 19. Bd4 {[%emt 0:10:08]} f6 {[%emt 0:01:19]} 20. Nb1 {[%emt 0:11:52]} Be6 {[%emt 0:05:21]} 21. Nd2 {[%emt 0:07:50]} Rdb8 {[%emt 0:00:11]} 22. Rc1 {[%emt 0:09:45]} Rb7 {[%emt 0:07:43]} 23. Be3 {[%emt 0:04:24]} Kh8 {[%emt 0:05:17]} 24. Rc3 {[%emt 0:01:31]} Qd7 {[%emt 0:03:08]} 25. Rec1 {[%emt 0:09:00]} Rc8 {[%emt 0:00:43]} 26. Rd1 {[%emt 0:03:53]} Qe8 {[%emt 0:16:14]} 27. Qf3 {[%emt 0:00:30]} Rb4 28. Qe2 d5 {[%emt 0:01:00]} 29. exd5 {[%emt 0:14:26]} Bxd5 {[%emt 0:00:04]} 30. Nc4 {[%emt 0:01:02]} Qg6 {[%emt 0:05:15]} 31. Qg4 {[%emt 0:02:05]} Qxg4 {[%emt 0:03:10]} 32. hxg4 {[%emt 0:00:03]} Bxc4 {[%emt 0:02:51]} 33. Rxc4 {[%emt 0:00:03]} Rxb3 {[%emt 0:00:52]} 34. Rd7 {[%emt 0:00:18]} Bf8 {[%emt 0:00:38]} 35. Rd2 {[%emt 0:04:26]} Rb4 {[%emt 0:11:49]} 36. Rdc2 {[%emt 0:00:38]} Kg8 {[%emt 0:01:23]} 37. Bd2 {[%emt 0:01:01]} Rxc4 {[%emt 0:02:41]} 38. Rxc4 {[%emt 0:00:01]} Rb8 {[%emt 0:00:06]} 39. Bxa5 {[%emt 0:01:19]} Rxb2 {[%emt 0:00:06]} 40. Rxc6 {[%emt 0:00:04]} Ra2 {[%emt 0:00:05]} 41. Rc4 {[%emt 0:00:07]} Bd6 {[%emt 0:01:15]} 42. g3 {[%emt 0:00:08]} Kf7 {[%emt 0:00:06]} 43. Bb6 {[%emt 0:00:24]} Ke6 {[%emt 0:00:56]} 44. a5 {[%emt 0:01:01]} Kd5 {[%emt 0:01:08]} 45. Rc8 {[%emt 0:00:08]} Bb4 {[%emt 0:02:22]} 46. Ra8 {[%emt 0:00:37]} Kc6 {[%emt 0:00:40]} 47. Ra7 {[%emt 0:00:29]} g5 {[%emt 0:00:48]} 48. Rxh7 {[%emt 0:01:09]} Kb5 {[%emt 0:02:26]} 49. Rf7 {[%emt 0:01:37]} Bc3 {[%emt 0:00:21]} 50. Rd7 {[%emt 0:00:16]} Be5 {[%emt 0:01:35]} 51. Kg2 {[%emt 0:00:23]} Ra3 {[%emt 0:01:20]} 52. Kf1 {[%emt 0:00:26]} Ra2 {[%emt 0:00:17]} 53. Rd3 {[%emt 0:00:17]} Ra4 {[%emt 0:00:28]} 54. Rf3 {[%emt 0:02:09]} Ra1+ {[%emt 0:02:30]} 55. Kg2 {[%emt 0:00:35]} Rd1 {[%emt 0:00:09]} 56. Rb3+ {[%emt 0:00:53]} Ka6 {[%emt 0:01:00]} 57. Kf3 {[%emt 0:00:08]} Ra1 {[%emt 0:01:32]} 58. Ke4 {[%emt 0:00:32]} Ra4+ {[%emt 0:00:06]} 59. Kf5 {[%emt 0:00:12]} Rc4 {[%emt 0:00:04]} 60. Rf3 {[%emt 0:01:15]} Kb5 {[%emt 0:01:02]} 61. Bd8 {[%emt 0:00:30]} Rc8 {[%emt 0:00:14]} 62. Bb6 {[%emt 0:00:24]} Rc4 {[%emt 0:00:08]} 63. Rd3 {[%emt 0:00:29]} Rc6 {[%emt 0:01:30]} 64. Rd8 {[%emt 0:00:26]} Rc3 {[%emt 0:00:17]} 65. Ra8 {[%emt 0:00:28]} Rf3+ {[%emt 0:00:22]} 66. Ke4 {[%emt 0:00:34]} Ra3 {[%emt 0:00:07]} 67. Be3 {[%emt 0:00:41]} Ra4+ {[%emt 0:00:49]} 68. Kf5 {[%emt 0:00:37]} Ra3 {[%emt 0:00:04]} 69. a6 {[%emt 0:00:33]} Bxg3 {[%emt 0:01:41]} 70. a7 {[%emt 0:00:13]} Bxf2 {[%emt 0:00:45]} 71. Bxf2 {[%emt 0:00:22]} 1-0

[Event "26th Abu Dhabi Master 2019"]
[Site "Abu Dhabi"]
[Date "2019.08.04"]
[Round "4.59"]
[White "Chitlange Sakshi"]
[Black "Alinasab, Mobina"]
[Result "1/2-1/2"]
[ECO "E10"]
[WhiteElo "2168"]
[BlackElo "2280"]
[Annotator "NA"]
[PlyCount "40"]
[EventDate "2019.08.02"]
[EventType "swiss"]
[EventCountry "UAE"]
[SourceTitle "playchess.com"]
[Source "ChessBase"]
[SourceQuality "1"]
[TimeControl "5400+30"]

1. d4 Nf6 2. c4 e6 3. Nf3 a6 4. Nc3 d5 5. cxd5 exd5 6. Bg5 Be6 7. Bxf6 Qxf6 8. Qb3 b5 9. a4 b4 10. Nxd5 Qd8 11. e4 c6 12. Qe3 cxd5 13. exd5 Qxd5 14. Rc1 Be7 15. Bd3 Ra7 16. Be4 Qb3 17. Qxb3 Bxb3 18. Rc8+ Bd8 19. Rxb8 Re7 20. Ne5 O-O 1/2-1/2

[Event "26th Abu Dhabi Master 2019"]
[Site "Abu Dhabi"]
[Date "2019.08.04"]
[Round "4.60"]
[White "Tarini Goyal"]
[Black "Salih, Akar Ali Salih"]
[Result "1/2-1/2"]
[ECO "A57"]
[WhiteElo "2038"]
[BlackElo "2261"]
[Annotator "NA"]
[PlyCount "41"]
[EventDate "2019.08.02"]
[EventType "swiss"]
[EventCountry "UAE"]
[SourceTitle "playchess.com"]
[Source "ChessBase"]
[SourceQuality "1"]
[TimeControl "5400+30"]

1. d4 {[%emt 0:00:00]} Nf6 {[%emt 0:04:46]} 2. c4 {[%emt 0:00:00]} c5 {[%emt 0:00:56]} 3. d5 {[%emt 0:00:00]} b5 {[%emt 0:00:14]} 4. cxb5 {[%emt 0:00:36]} a6 {[%emt 0:00:08]} 5. e3 {[%emt 0:00:23]} g6 {[%emt 0:08:05]} 6. Nf3 {[%emt 0:01:21]} d6 {[%emt 0:03:04]} 7. Nc3 {[%emt 0:01:05]} Bg7 {[%emt 0:00:12]} 8. Be2 {[%emt 0:00:16]} O-O {[%emt 0:00:12]} 9. O-O {[%emt 0:00:11]} Bb7 {[%emt 0:03:32]} 10. e4 {[%emt 0:01:35]} axb5 {[%emt 0:00:42]} 11. Bxb5 {[%emt 0:00:12]} Qa5 {[%emt 0:05:30]} 12. a4 {[%emt 0:02:21]} Ba6 {[%emt 0:04:54]} 13. Ra3 {[%emt 0:02:41]} Nbd7 {[%emt 0:08:22]} 14. h3 {[%emt 0:03:35]} Bxb5 {[%emt 0:13:41]} 15. axb5 {[%emt 0:00:18]} Qb4 {[%emt 0:00:16]} 16. Rb3 {[%emt 0:05:16]} Qc4 {[%emt 0:04:31]} 17. Nd2 {[%emt 0:08:56]} Qd4 {[%emt 0:00:09]} 18. Ne2 {[%emt 0:14:59]} Qa4 {[%emt 0:02:31]} 19. Nc3 {[%emt 0:00:37]} Qd4 {[%emt 0:00:57]} 20. Ne2 {[%emt 0:01:26]} Qa4 {[%emt 0:00:32]} 21. Nc3 {[%emt 0:00:06]} 1/2-1/2

[Event "26th Abu Dhabi Master 2019"]
[Site "Abu Dhabi"]
[Date "2019.08.04"]
[Round "4.61"]
[White "Aaryan Varshney"]
[Black "Ammar, Sedrani"]
[Result "1-0"]
[ECO "D09"]
[WhiteElo "2284"]
[BlackElo "2024"]
[Annotator "NA"]
[PlyCount "73"]
[EventDate "2019.08.02"]
[EventType "swiss"]
[EventCountry "UAE"]
[SourceTitle "playchess.com"]
[Source "ChessBase"]
[SourceQuality "1"]
[TimeControl "5400+30"]

1. d4 {[%emt 0:00:45]} d5 {[%emt 0:00:00]} 2. c4 {[%emt 0:00:53]} e5 {[%emt 0:00:00]} 3. dxe5 {[%emt 0:00:29]} d4 {[%emt 0:00:01]} 4. Nf3 {[%emt 0:00:05]} Nc6 {[%emt 0:00:02]} 5. g3 {[%emt 0:00:01]} Nge7 {[%emt 0:00:45]} 6. Bg2 {[%emt 0:02:46]} Ng6 {[%emt 0:00:52]} 7. O-O {[%emt 0:01:08]} Ngxe5 {[%emt 0:05:04]} 8. b3 {[%emt 0:01:01]} Nxf3+ {[%emt 0:01:08]} 9. exf3 {[%emt 0:02:02]} Be7 {[%emt 0:00:56]} 10. Bb2 {[%emt 0:00:35]} O-O {[%emt 0:00:07]} 11. f4 {[%emt 0:00:27]} Bf6 {[%emt 0:00:28]} 12. Nd2 {[%emt 0:02:19]} Bf5 {[%emt 0:17:06]} 13. Ne4 {[%emt 0:04:38]} Bxe4 {[%emt 0:01:01]} 14. Bxe4 {[%emt 0:00:04]} Qd7 {[%emt 0:00:13]} 15. a3 {[%emt 0:01:34]} a5 {[%emt 0:00:11]} 16. Qf3 {[%emt 0:04:47]} Rad8 {[%emt 0:00:33]} 17. Rad1 {[%emt 0:00:39]} Ne7 {[%emt 0:00:52]} 18. Qh5 {[%emt 0:03:17]} g6 {[%emt 0:00:11]} 19. Qxa5 {[%emt 0:00:12]} b6 {[%emt 0:00:16]} 20. Qb4 {[%emt 0:01:14]} Qe6 {[%emt 0:02:12]} 21. Rfe1 {[%emt 0:03:32]} c5 {[%emt 0:00:08]} 22. Qd2 {[%emt 0:00:44]} Qd7 {[%emt 0:00:38]} 23. Qd3 {[%emt 0:00:19]} Rfe8 {[%emt 0:04:20]} 24. Re2 {[%emt 0:04:00]} Kg7 {[%emt 0:06:36]} 25. Rde1 {[%emt 0:01:01]} h5 {[%emt 0:00:56]} 26. Bf3 {[%emt 0:05:57]} Nc6 {[%emt 0:08:29]} 27. Bc1 {[%emt 0:01:48]} Rxe2 {[%emt 0:00:35]} 28. Rxe2 {[%emt 0:00:03]} Re8 {[%emt 0:00:32]} 29. Rxe8 {[%emt 0:00:30]} Qxe8 {[%emt 0:00:02]} 30. Bd2 {[%emt 0:00:25]} Kf8 {[%emt 0:02:12]} 31. b4 {[%emt 0:00:58]} Ne7 {[%emt 0:01:51]} 32. b5 {[%emt 0:03:07]} Nf5 {[%emt 0:02:08]} 33. a4 {[%emt 0:02:12]} Nd6 {[%emt 0:01:36]} 34. a5 {[%emt 0:00:35]} bxa5 {[%emt 0:01:02]} 35. Bxa5 {[%emt 0:00:44]} Bd8 {[%emt 0:00:22]} 36. Bxd8 {[%emt 0:08:03]} Qxd8 {[%emt 0:00:05]} 37. Qa3 {[%emt 0:00:12]} 1-0

[Event "26th Abu Dhabi Master 2019"]
[Site "Abu Dhabi"]
[Date "2019.08.04"]
[Round "4.62"]
[White "Nguyen, Anh Khoi"]
[Black "Ajay Karthikeyan"]
[Result "1-0"]
[ECO "A40"]
[WhiteElo "2516"]
[BlackElo "2216"]
[Annotator "ChessBase"]
[PlyCount "36"]
[EventDate "2019.08.02"]
[EventType "swiss"]
[EventCountry "UAE"]
[SourceTitle "playchess.com"]
[Source "ChessBase"]
[SourceQuality "1"]
[TimeControl "5400+30"]

1. d4 e5 {[%emt 0:00:00]} 2. c4 {[%emt 0:00:00]} d6 {[%emt 0:00:00]} 3. Nc3 {[%emt 0:00:02]} Nd7 {[%emt 0:00:14]} 4. Nf3 {[%emt 0:01:14]} Be7 {[%emt 0:00:45]} 5. Bg5 {[%emt 0:00:10]} Ngf6 {[%emt 0:00:30]} 6. e3 {[%emt 0:00:30]} O-O {[%emt 0:00:22]} 7. Be2 {[%emt 0:00:28]} c6 {[%emt 0:01:46]} 8. Qc2 {[%emt 0:00:20]} Qc7 {[%emt 0:05:57]} 9. O-O {[%emt 0:00:40]} Re8 {[%emt 0:00:42]} 10. Rfd1 {[%emt 0:01:58]} a6 {[%emt 0:09:50]} 11. Rac1 {[%emt 0:02:32]} b6 {[%emt 0:01:35]} 12. h3 {[%emt 0:07:13]} Bb7 {[%emt 0:02:15]} 13. Bh4 {[%emt 0:04:49]} h6 {[%emt 0:09:12]} 14. Bg3 {[%emt 0:12:18]} Rad8 {[%emt 0:02:17]} 15. c5 {[%emt 0:05:23]} exd4 {[%emt 0:07:17]} 16. cxb6 {[%emt 0:02:21]} Nxb6 {[%emt 0:01:34]} 17. Nxd4 {[%emt 0:00:32]} c5 {[%emt 0:07:33]} 18. Nf5 {[%emt 0:03:17]} Bf8 {[%emt 0:01:17]} 1-0

[Event "26th Abu Dhabi Master 2019"]
[Site "Abu Dhabi"]
[Date "2019.08.04"]
[Round "4.64"]
[White "Raja Rithvik R"]
[Black "Asaka, Samuel"]
[Result "1-0"]
[ECO "A18"]
[WhiteElo "2357"]
[BlackElo "2201"]
[Annotator "NA"]
[PlyCount "39"]
[EventDate "2019.08.02"]
[EventType "swiss"]
[EventCountry "UAE"]
[SourceTitle "playchess.com"]
[Source "ChessBase"]
[SourceQuality "1"]
[TimeControl "5400+30"]

1. c4 e6 2. Nc3 Nf6 3. e4 d5 4. e5 d4 5. exf6 dxc3 6. bxc3 Qxf6 7. d4 b6 8. Nh3 e5 9. Bg5 Qc6 10. dxe5 f6 11. exf6 Bxh3 12. Qh5+ g6 13. Qxh3 Nd7 14. Be2 Kf7 15. O-O Ne5 16. f4 Nxc4 17. Bf3 Qc5+ 18. Kh1 Rd8 19. Rfe1 Rd6 20. Qc8 1-0

[Event "26th Abu Dhabi Master 2019"]
[Site "Abu Dhabi"]
[Date "2019.08.04"]
[Round "4.65"]
[White "Gajwa Ankit"]
[Black "Priyanka, K."]
[Result "1-0"]
[ECO "E92"]
[WhiteElo "2302"]
[BlackElo "2201"]
[Annotator "NA"]
[PlyCount "111"]
[EventDate "2019.08.02"]
[EventType "swiss"]
[EventCountry "UAE"]
[SourceTitle "playchess.com"]
[Source "ChessBase"]
[SourceQuality "1"]
[TimeControl "5400+30"]

1. d4 {[%emt 0:00:00]} Nf6 {[%emt 0:00:15]} 2. c4 {[%emt 0:00:00]} g6 {[%emt 0:00:10]} 3. Nc3 {[%emt 0:00:00]} Bg7 {[%emt 0:00:56]} 4. e4 {[%emt 0:00:03]} d6 {[%emt 0:00:03]} 5. Nf3 {[%emt 0:00:09]} O-O {[%emt 0:01:11]} 6. Be2 {[%emt 0:00:11]} e5 {[%emt 0:00:19]} 7. d5 {[%emt 0:00:04]} a5 {[%emt 0:02:52]} 8. Bg5 {[%emt 0:00:20]} Na6 {[%emt 0:05:39]} 9. Nd2 {[%emt 0:00:27]} Qe8 {[%emt 0:10:20]} 10. g4 {[%emt 0:19:55]} Nd7 {[%emt 0:14:44]} 11. h4 {[%emt 0:07:49]} f6 {[%emt 0:06:38]} 12. Be3 {[%emt 0:00:20]} f5 {[%emt 0:05:25]} 13. gxf5 {[%emt 0:01:27]} gxf5 {[%emt 0:04:22]} 14. exf5 {[%emt 0:00:12]} Rxf5 {[%emt 0:02:00]} 15. Nde4 {[%emt 0:02:14]} Nac5 {[%emt 0:07:09]} 16. Rg1 {[%emt 0:03:34]} Kh8 {[%emt 0:03:00]} 17. Qd2 {[%emt 0:04:41]} Qf8 {[%emt 0:16:24]} 18. O-O-O {[%emt 0:05:24]} Rf4 {[%emt 0:07:54]} 19. Bxf4 {[%emt 0:00:30]} exf4 20. Rxg7 Qxg7 21. Qxf4 {[%emt 0:17:08]} Nxe4 {[%emt 0:01:30]} 22. Nxe4 {[%emt 0:12:29]} Ne5 {[%emt 0:01:21]} 23. Qe3 {[%emt 0:02:46]} Bf5 {[%emt 0:04:38]} 24. Ng3 {[%emt 0:05:25]} Bg4 {[%emt 0:01:03]} 25. Rd4 {[%emt 0:07:40]} Bxe2 {[%emt 0:00:42]} 26. Nxe2 {[%emt 0:00:52]} Rf8 {[%emt 0:01:19]} 27. Re4 {[%emt 0:05:14]} Rxf2 {[%emt 0:02:46]} 28. Qxf2 {[%emt 0:01:53]} Nd3+ {[%emt 0:00:05]} 29. Kd2 {[%emt 0:00:17]} Nxf2 {[%emt 0:00:24]} 30. Re8+ {[%emt 0:00:04]} Qg8 {[%emt 0:00:04]} 31. Rxg8+ {[%emt 0:00:12]} Kxg8 {[%emt 0:00:04]} 32. Nd4 {[%emt 0:00:49]} Ne4+ {[%emt 0:01:31]} 33. Ke3 {[%emt 0:00:10]} Nc5 {[%emt 0:00:41]} 34. Nb5 {[%emt 0:00:40]} Na6 {[%emt 0:00:08]} 35. Kf4 {[%emt 0:00:32]} Kg7 {[%emt 0:01:17]} 36. Kg5 {[%emt 0:01:19]} h6+ {[%emt 0:00:16]} 37. Kf5 {[%emt 0:00:14]} Kf7 {[%emt 0:00:06]} 38. b3 {[%emt 0:00:42]} b6 {[%emt 0:01:06]} 39. h5 {[%emt 0:01:20]} Nb4 {[%emt 0:00:34]} 40. Nxc7 {[%emt 0:02:13]} Nxa2 {[%emt 0:00:13]} 41. Na8 {[%emt 0:00:12]} Nc1 {[%emt 0:00:44]} 42. Nxb6 {[%emt 0:00:05]} Nxb3 {[%emt 0:00:20]} 43. Nc8 {[%emt 0:00:08]} a4 {[%emt 0:00:42]} 44. Nxd6+ {[%emt 0:00:04]} Ke7 {[%emt 0:00:07]} 45. Nb5 {[%emt 0:00:08]} Kf7 {[%emt 0:00:19]} 46. Ke5 {[%emt 0:00:47]} Ke7 {[%emt 0:00:10]} 47. Kf5 {[%emt 0:00:49]} Kf7 {[%emt 0:00:23]} 48. d6 {[%emt 0:00:32]} Nc5 {[%emt 0:01:03]} 49. Ke5 {[%emt 0:00:21]} Nd7+ {[%emt 0:00:52]} 50. Kd5 {[%emt 0:00:33]} Nb6+ {[%emt 0:00:36]} 51. Kc5 {[%emt 0:00:24]} Nd7+ {[%emt 0:00:20]} 52. Kc6 {[%emt 0:00:08]} Nf6 {[%emt 0:00:38]} 53. c5 {[%emt 0:01:38]} Ke8 {[%emt 0:00:31]} 54. Kc7 {[%emt 0:00:23]} Nd5+ {[%emt 0:00:15]} 55. Kc8 {[%emt 0:00:10]} Nf6 {[%emt 0:00:48]} 56. c6 {[%emt 0:00:14]} 1-0

[Event "26th Abu Dhabi Master 2019"]
[Site "Abu Dhabi"]
[Date "2019.08.04"]
[Round "4.66"]
[White "Arjun C Krishnamachari"]
[Black "Gomes, Mary Ann"]
[Result "1/2-1/2"]
[ECO "B22"]
[WhiteElo "2212"]
[BlackElo "2303"]
[Annotator "NA"]
[PlyCount "24"]
[EventDate "2019.08.02"]
[EventType "swiss"]
[EventCountry "UAE"]
[SourceTitle "playchess.com"]
[Source "ChessBase"]
[SourceQuality "1"]
[TimeControl "5400+30"]

1. e4 {[%emt 0:16:50]} c5 {[%emt 0:00:01]} 2. c3 {[%emt 0:00:09]} Nf6 {[%emt 0:00:12]} 3. e5 {[%emt 0:00:05]} Nd5 {[%emt 0:00:04]} 4. Nf3 {[%emt 0:00:05]} Nc6 {[%emt 0:00:11]} 5. d4 {[%emt 0:00:37]} cxd4 {[%emt 0:00:13]} 6. cxd4 {[%emt 0:00:27]} d6 {[%emt 0:00:16]} 7. Nc3 {[%emt 0:05:45]} dxe5 {[%emt 0:03:58]} 8. dxe5 {[%emt 0:00:27]} e6 {[%emt 0:00:52]} 9. Bd3 {[%emt 0:13:36]} Ndb4 {[%emt 0:06:58]} 10. Be4 {[%emt 0:00:38]} Qxd1+ {[%emt 0:00:26]} 11. Kxd1 {[%emt 0:01:08]} Bc5 {[%emt 0:05:11]} 12. Ke2 {[%emt 0:00:25]} Bd7 1/2-1/2

[Event "26th Abu Dhabi Master 2019"]
[Site "Abu Dhabi"]
[Date "2019.08.04"]
[Round "4.67"]
[White "Srija, Seshadri"]
[Black "Adnan, Habib"]
[Result "1-0"]
[ECO "C06"]
[WhiteElo "2306"]
[BlackElo "2197"]
[Annotator "NA"]
[PlyCount "47"]
[EventDate "2019.08.02"]
[EventType "swiss"]
[EventCountry "UAE"]
[SourceTitle "playchess.com"]
[Source "ChessBase"]
[SourceQuality "1"]
[TimeControl "5400+30"]

1. e4 e6 2. d4 d5 3. Nd2 Nf6 4. e5 Nfd7 5. Bd3 c5 6. c3 Nc6 7. Ne2 cxd4 8. cxd4 f6 9. exf6 Nxf6 10. Nf3 Bd6 11. O-O Qc7 12. h3 O-O 13. Be3 Bd7 14. Re1 a6 15. Rc1 h6 16. Nc3 b5 17. Ne5 Be8 18. f4 g5 19. fxg5 hxg5 20. Bxg5 Qg7 21. Bxf6 Rxf6 22. Ng4 Rf8 23. Rxe6 Bf4 24. Nxd5 1-0

[Event "26th Abu Dhabi Master 2019"]
[Site "Abu Dhabi"]
[Date "2019.08.04"]
[Round "4.68"]
[White "Wagh Suyog"]
[Black "Al Hosani, Omran"]
[Result "0-1"]
[ECO "A05"]
[WhiteElo "2242"]
[BlackElo "2135"]
[Annotator "NA"]
[PlyCount "43"]
[EventDate "2019.08.02"]
[EventType "swiss"]
[EventCountry "UAE"]
[SourceTitle "playchess.com"]
[Source "ChessBase"]
[SourceQuality "1"]
[TimeControl "5400+30"]

1. Nf3 Nf6 2. g3 g6 3. Bg2 Bg7 4. d4 {[%emt 0:00:45]} O-O {[%emt 0:00:33]} 5. O-O {[%emt 0:01:46]} d5 {[%emt 0:00:28]} 6. c4 {[%emt 0:00:05]} dxc4 {[%emt 0:00:06]} 7. Na3 {[%emt 0:00:45]} c3 {[%emt 0:00:02]} 8. bxc3 {[%emt 0:00:27]} c5 {[%emt 0:00:04]} 9. e3 {[%emt 0:02:24]} Nc6 {[%emt 0:00:39]} 10. Qe2 {[%emt 0:02:32]} cxd4 {[%emt 0:02:58]} 11. cxd4 {[%emt 0:00:05]} Be6 {[%emt 0:02:35]} 12. Bb2 {[%emt 0:05:19]} Bd5 {[%emt 0:00:22]} 13. Nd2 {[%emt 0:20:12]} Bxg2 {[%emt 0:00:07]} 14. Kxg2 {[%emt 0:00:04]} Rc8 {[%emt 0:02:32]} 15. Nb3 {[%emt 0:27:12]} e5 {[%emt 0:15:59]} 16. dxe5 {[%emt 0:01:56]} Nxe5 {[%emt 0:02:52]} 17. Rad1 {[%emt 0:04:34]} Qe8 {[%emt 0:09:43]} 18. e4 {[%emt 0:03:58]} Qe6 {[%emt 0:01:34]} 19. Rfe1 {[%emt 0:10:21]} Rfe8 20. f4 Nc4 21. Nb5 Nxb2 22. Qxb2 0-1